fUSD/lending_fUSD_20260513
["ID","MTS","AMOUNT","RATE_DAILY","PERIOD"]
[422151102,1778623854000,-509.77455977,0.0004,7]
[422151104,1778623854000,-393.56193328,0.0004,30]
[422151105,1778623854000,-477.23,0.0004,120]
[422151106,1778623854000,-851.59,0.0004,120]
[422151103,1778623854000,-345.03434316,0.0004,30]
[422151107,1778623854000,-5000.0,0.0004,41]
[422151108,1778623854000,-1528.23,0.00040005,2]
[422151109,1778623854000,-755.44,0.00040005,2]
[422151110,1778623854000,-377.44,0.00040005,2]
[422151113,1778623854000,-1528.46,0.00040005,2]
[422151112,1778623854000,-380.64,0.00040005,2]
[422151114,1778623854000,-152.0,0.00040027,7]
[422151101,1778623854000,-500.0,0.0004,7]
[422151115,1778623854000,-152.0,0.00040027,7]
[422151120,1778623854000,-377.44,0.00040048,7]
[422151116,1778623854000,-1815.17,0.00040042,120]
[422151117,1778623854000,-1528.33,0.00040048,7]
[422151121,1778623854000,-756.69,0.00040048,7]
[422151118,1778623854000,-155.13,0.00040048,7]
[422151119,1778623854000,-755.62,0.00040048,7]
[422151123,1778623854000,-380.79,0.00040048,7]
[422151122,1778623854000,-154.28,0.00040048,7]
[422151124,1778623854000,-1528.64,0.00040048,7]
[422151125,1778623854000,-1000.0,0.00040054,10]
[422151126,1778623854000,-152.0,0.00040107,7]
[422151078,1778623854000,-377.44,0.00039962,30]
[422151111,1778623854000,-756.5,0.00040005,2]
[422151099,1778623854000,-161.31477917,0.0004,7]
[422151021,1778623854000,-1528.23,0.00039874,2]
[422151096,1778623854000,-515.55674824,0.0004,2]
[422151100,1778623854000,-500.0,0.0004,7]
[422151068,1778623854000,-756.5,0.00039918,7]
[422151070,1778623854000,-1528.46,0.00039918,7]
[422151071,1778623854000,-154.98,0.00039945,30]
[422151066,1778623854000,-755.44,0.00039918,7]
[422151072,1778623854000,-154.19,0.00039945,30]
[422151069,1778623854000,-380.64,0.00039918,7]
[422151079,1778623854000,-75399.53655657,0.0003997,2]
[422151083,1778623854000,-303.0,0.0004,30]
[422151084,1778623854000,-161.0,0.0004,2]
[422151080,1778623854000,-154.98,0.00039997,2]
[422151081,1778623854000,-154.19,0.00039997,2]
[422151074,1778623854000,-756.5,0.00039961,30]
[422151073,1778623854000,-1528.23,0.00039961,30]
[422151082,1778623854000,-3050.84825275,0.00039999,2]
[422151098,1778623854000,-200.0,0.0004,7]
[422151097,1778623854000,-610.23323427,0.0004,2]
[422151093,1778623854000,-319.56587598,0.0004,2]
[422151095,1778623854000,-10861.7725003,0.0004,2]
[422151085,1778623854000,-2100.16983009,0.0004,2]
[422151092,1778623854000,-200.42136563,0.0004,120]
[422151094,1778623854000,-163.97940622,0.0004,2]
[422151090,1778623854000,-4176.07107658,0.0004,2]
[422151089,1778623854000,-1585.73370663,0.0004,2]
[422151088,1778623854000,-396.34991354,0.0004,2]
[422151087,1778623854000,-24134.93548826,0.0004,2]
[422151086,1778623854000,-1921.46864792,0.0004,4]
[422151091,1778623854000,-330.25822551,0.0004,2]
[422151166,1778623855000,-1073.12895891,0.00040468,50]
[422151170,1778623855000,-1105.22353275,0.00040468,50]
[422151163,1778623855000,-1133.10859713,0.00040468,50]
[422151164,1778623855000,-1093.95184112,0.00040468,50]
[422151152,1778623855000,-500.0,0.00040355,60]
[422151161,1778623855000,-3540.0,0.00040467,2]
[422151162,1778623855000,-1112.58756098,0.00040468,50]
[422151160,1778623855000,-1353.0,0.00040467,2]
[422151158,1778623855000,-157.71229644,0.00040465,2]
[422151168,1778623855000,-1022.80880811,0.00040468,50]
[422151159,1778623855000,-1000.0,0.00040465,10]
[422151165,1778623855000,-1009.56032442,0.00040468,50]
[422151177,1778623855000,-163.0,0.00040608,11]
[422151172,1778623855000,-1041.98677025,0.00040468,50]
[422151182,1778623855000,-180.54,0.00040704,30]
[422151171,1778623855000,-1132.92446986,0.00040468,50]
[422151175,1778623855000,-1000.0,0.00040602,10]
[422151179,1778623855000,-5648.49680888,0.00040666,2]
[422151174,1778623855000,-11355.43010481,0.000405,120]
[422151173,1778623855000,-500.0,0.0004048,30]
[422151176,1778623855000,-1583.0,0.00040608,11]
[422151178,1778623855000,-157.6032615,0.00040639,120]
[422151181,1778623855000,-1815.17,0.00040697,120]
[422151180,1778623855000,-600.33913863,0.00040672,120]
[422151153,1778623855000,-1815.17,0.00040369,120]
[422151167,1778623855000,-1036.48232534,0.00040468,50]
[422151155,1778623855000,-2309.0,0.00040399,11]
[422151138,1778623855000,-300.0,0.00040279,2]
[422151154,1778623855000,-150.0,0.00040378,2]
[422151133,1778623855000,-360.20348317,0.00040217,120]
[422151131,1778623855000,-1000.0,0.00040191,10]
[422151128,1778623855000,-152.0,0.00040189,30]
[422151127,1778623855000,-165.11300457,0.00040117,2]
[422151132,1778623855000,-157.03,0.000402,30]
[422151129,1778623855000,-152.0,0.00040189,30]
[422151130,1778623855000,-157.71229644,0.00040191,2]
[422151135,1778623855000,-300.0,0.00040279,2]
[422151145,1778623855000,-541.3,0.0004029,60]
[422151134,1778623855000,-152.0,0.00040224,7]
[422151146,1778623855000,-2254.66,0.0004029,60]
[422151137,1778623855000,-300.0,0.00040279,2]
[422151157,1778623855000,-150.0,0.00040461,2]
[422151136,1778623855000,-300.0,0.00040279,2]
[422151141,1778623855000,-300.0,0.00040279,2]
[422151139,1778623855000,-300.0,0.00040279,2]
[422151140,1778623855000,-300.0,0.00040279,2]
[422151144,1778623855000,-4337.40954164,0.00040287,12]
[422151142,1778623855000,-300.0,0.00040279,2]
[422151143,1778623855000,-422.65,0.00040279,2]
[422151148,1778623855000,-202.5,0.0004029,60]
[422151147,1778623855000,-4833.95,0.0004029,60]
[422151151,1778623855000,-500.0,0.00040355,60]
[422151156,1778623855000,-507.0,0.00040445,10]
[422151149,1778623855000,-102780.82107953,0.000403,120]
[422151150,1778623855000,-1000.0,0.00040328,10]
[422151183,1778623855000,-1583.0,0.00040719,11]
[422151186,1778623855000,-2557.04200597,0.00040744,14]
[422151169,1778623855000,-1068.81681005,0.00040468,50]
[422151185,1778623855000,-1000.0,0.00040739,10]
[422151217,1778623855000,-25000.0,0.0004107,15]
[422151220,1778623855000,-320.65636828,0.0004108,2]
[422151218,1778623855000,-151.0,0.00041078,30]
[422151219,1778623855000,-25000.0,0.00041078,15]
[422151221,1778623855000,-320.58803403,0.0004108,2]
[422151224,1778623855000,-344.79731282,0.0004108,2]
[422151223,1778623855000,-330.8108737,0.0004108,2]
[422151222,1778623855000,-190.51879669,0.0004108,2]
[422151228,1778623855000,-287.87294419,0.00041081,2]
[422151227,1778623855000,-241.2266233,0.0004108,2]
[422151225,1778623855000,-320.44658958,0.0004108,2]
[422151226,1778623855000,-198.34152229,0.0004108,2]
[422151230,1778623855000,-25000.0,0.00041087,15]
[422151229,1778623855000,-153.846307,0.00041087,30]
[422151233,1778623855000,-151.0,0.00041096,120]
[422151231,1778623855000,-7283.54622967,0.00041095,5]
[422151235,1778623855000,-151.0,0.00041096,120]
[422151234,1778623855000,-151.0,0.00041096,120]
[422151238,1778623855000,-151.0,0.00041096,120]
[422151236,1778623855000,-151.0,0.00041096,120]
[422151232,1778623855000,-167.05111765,0.00041096,2]
[422151237,1778623855000,-151.0,0.00041096,120]
[422151239,1778623855000,-151.0,0.00041096,120]
[422151242,1778623855000,-151.0,0.00041096,120]
[422151241,1778623855000,-151.0,0.00041096,120]
[422151240,1778623855000,-151.0,0.00041096,120]
[422151187,1778623855000,-152.0,0.00040791,30]
[422151210,1778623855000,-1815.17,0.00041024,120]
[422151214,1778623855000,-25000.0,0.00041052,15]
[422151243,1778623855000,-251.877461,0.00041096,120]
[422151211,1778623855000,-25000.0,0.00041034,15]
[422151216,1778623855000,-25000.0,0.00041061,15]
[422151184,1778623855000,-157.71229644,0.00040739,2]
[422151194,1778623855000,-200.0,0.000409,14]
[422151190,1778623855000,-1000.0,0.00040876,10]
[422151191,1778623855000,-649.56,0.00040887,120]
[422151192,1778623855000,-812.31,0.00040887,120]
[422151193,1778623855000,-763.80098266,0.000409,120]
[422151189,1778623855000,-187.0,0.000408,11]
[422151196,1778623855000,-600.3391386,0.00040949,120]
[422151206,1778623855000,-5000.0,0.00041,42]
[422151198,1778623855000,-1000.0,0.00040963,120]
[422151208,1778623855000,-157.71229644,0.00041013,2]
[422151197,1778623855000,-273845.0,0.0004095,60]
[422151188,1778623855000,-27733.63863828,0.000408,60]
[422151203,1778623855000,-500.0,0.00041,7]
[422151195,1778623855000,-200.0,0.000409,17]
[422151199,1778623855000,-57969.9434131,0.00041,5]
[422151201,1778623855000,-500.0,0.00041,7]
[422151200,1778623855000,-42219.4983674,0.00041,120]
[422151204,1778623855000,-500.0,0.00041,30]
[422151202,1778623855000,-500.0,0.00041,7]
[422151205,1778623855000,-100000.0,0.00041,12]
[422151207,1778623855000,-18745.758119,0.00041,15]
[422151209,1778623855000,-1000.0,0.00041013,10]
[422151212,1778623855000,-2339.0,0.00041039,11]
[422151213,1778623855000,-25000.0,0.00041043,15]
[422151215,1778623855000,-387.1721762,0.00041058,2]
[422151281,1778623856000,-837.17522,0.00041096,120]
[422151293,1778623856000,-214.401417,0.00041096,7]
[422151283,1778623856000,-837.17522,0.00041096,120]
[422151285,1778623856000,-837.17522,0.00041096,120]
[422151286,1778623856000,-837.17522,0.00041096,120]
[422151276,1778623856000,-226.128836,0.00041096,120]
[422151279,1778623856000,-226.128836,0.00041096,120]
[422151278,1778623856000,-226.128836,0.00041096,120]
[422151275,1778623856000,-226.128836,0.00041096,120]
[422151277,1778623856000,-226.128836,0.00041096,120]
[422151284,1778623856000,-837.17522,0.00041096,120]
[422151280,1778623856000,-226.128836,0.00041096,120]
[422151282,1778623856000,-837.17522,0.00041096,120]
[422151300,1778623856000,-25000.0,0.00041096,15]
[422151289,1778623856000,-151.0,0.00041096,7]
[422151291,1778623856000,-151.0,0.00041096,7]
[422151299,1778623856000,-274.26595005,0.00041096,60]
[422151288,1778623856000,-837.17522,0.00041096,120]
[422151290,1778623856000,-151.0,0.00041096,7]
[422151298,1778623856000,-410.0,0.00041096,60]
[422151296,1778623856000,-1000.0,0.00041096,120]
[422151297,1778623856000,-288.4582792,0.00041096,120]
[422151295,1778623856000,-151.0,0.00041096,120]
[422151292,1778623856000,-151.0,0.00041096,7]
[422151294,1778623856000,-151.0,0.00041096,120]
[422151274,1778623856000,-226.128836,0.00041096,120]
[422151287,1778623856000,-837.17522,0.00041096,120]
[422151271,1778623856000,-151.0,0.00041096,120]
[422151262,1778623856000,-499.931776,0.00041096,120]
[422151273,1778623856000,-226.128836,0.00041096,120]
[422151301,1778623856000,-118885.90147973,0.0004111,2]
[422151251,1778623856000,-1557.527589,0.00041096,20]
[422151244,1778623856000,-1557.527589,0.00041096,20]
[422151245,1778623856000,-1557.527589,0.00041096,20]
[422151247,1778623856000,-1557.527589,0.00041096,20]
[422151246,1778623856000,-1557.527589,0.00041096,20]
[422151250,1778623856000,-1557.527589,0.00041096,20]
[422151249,1778623856000,-1557.527589,0.00041096,20]
[422151248,1778623856000,-1557.527589,0.00041096,20]
[422151253,1778623856000,-1105.864447,0.00041096,120]
[422151252,1778623856000,-1105.864447,0.00041096,120]
[422151254,1778623856000,-1105.864447,0.00041096,120]
[422151256,1778623856000,-1105.864447,0.00041096,120]
[422151255,1778623856000,-1105.864447,0.00041096,120]
[422151261,1778623856000,-499.931776,0.00041096,120]
[422151257,1778623856000,-1105.864447,0.00041096,120]
[422151258,1778623856000,-1105.864447,0.00041096,120]
[422151260,1778623856000,-215.526239,0.00041096,120]
[422151263,1778623856000,-499.931776,0.00041096,120]
[422151259,1778623856000,-1105.864447,0.00041096,120]
[422151266,1778623856000,-499.931776,0.00041096,120]
[422151264,1778623856000,-499.931776,0.00041096,120]
[422151269,1778623856000,-151.0,0.00041096,120]
[422151268,1778623856000,-499.931776,0.00041096,120]
[422151265,1778623856000,-499.931776,0.00041096,120]
[422151267,1778623856000,-499.931776,0.00041096,120]
[422151272,1778623856000,-151.0,0.00041096,120]
[422151270,1778623856000,-151.0,0.00041096,120]
[422151303,1778623856000,-333.68159339,0.00041115,2]
[422151344,1778623856000,-500.0,0.00041233,7]
[422151302,1778623856000,-338.43150361,0.00041115,2]
[422151337,1778623856000,-500.0,0.00041233,7]
[422151347,1778623856000,-1134.33657675,0.00041234,120]
[422151336,1778623856000,-500.0,0.00041233,7]
[422151339,1778623856000,-500.0,0.00041233,7]
[422151341,1778623856000,-500.0,0.00041233,7]
[422151343,1778623856000,-500.0,0.00041233,7]
[422151338,1778623856000,-500.0,0.00041233,7]
[422151342,1778623856000,-500.0,0.00041233,7]
[422151340,1778623856000,-500.0,0.00041233,7]
[422151345,1778623856000,-261.33032399,0.00041233,7]
[422151346,1778623856000,-9999.6,0.00041234,120]
[422151354,1778623856000,-353.78,0.00041257,120]
[422151348,1778623856000,-151.0,0.00041234,120]
[422151349,1778623856000,-151.0,0.00041234,120]
[422151360,1778623856000,-320.32502488,0.00041276,2]
[422151357,1778623856000,-309.92860323,0.00041276,2]
[422151359,1778623856000,-355.55555556,0.00041276,2]
[422151356,1778623856000,-400.53056535,0.00041276,2]
[422151352,1778623856000,-151.0,0.00041234,120]
[422151355,1778623856000,-295.22415065,0.00041259,120]
[422151350,1778623856000,-151.0,0.00041234,120]
[422151351,1778623856000,-151.0,0.00041234,120]
[422151358,1778623856000,-342.85714286,0.00041276,2]
[422151362,1778623856000,-343.20647784,0.00041276,2]
[422151363,1778623856000,-150.14,0.0004128,120]
[422151361,1778623856000,-338.19920154,0.00041276,2]
[422151304,1778623856000,-305.85115882,0.00041115,2]
[422151334,1778623856000,-500.0,0.00041233,7]
[422151333,1778623856000,-500.0,0.00041233,7]
[422151353,1778623856000,-4327.28,0.00041251,2]
[422151332,1778623856000,-500.0,0.00041233,7]
[422151311,1778623856000,-2092.7,0.00041136,2]
[422151331,1778623856000,-500.0,0.00041233,7]
[422151309,1778623856000,-313.23279995,0.00041126,2]
[422151308,1778623856000,-196.48330551,0.00041126,2]
[422151307,1778623856000,-183.28670175,0.00041125,2]
[422151306,1778623856000,-441.1890291,0.00041116,2]
[422151305,1778623856000,-156.34906884,0.00041116,2]
[422151313,1778623856000,-507.0,0.00041164,10]
[422151323,1778623856000,-600.3391386,0.00041225,120]
[422151312,1778623856000,-1000.0,0.0004115,14]
[422151317,1778623856000,-4676.12137838,0.00041178,30]
[422151322,1778623856000,-492.513,0.000412,120]
[422151320,1778623856000,-500.0,0.000412,30]
[422151318,1778623856000,-150.0,0.00041178,30]
[422151310,1778623856000,-152.0,0.00041136,8]
[422151319,1778623856000,-373.62124569,0.00041178,30]
[422151314,1778623856000,-150.0,0.00041178,30]
[422151330,1778623856000,-500.0,0.00041233,7]
[422151327,1778623856000,-500.0,0.00041233,7]
[422151328,1778623856000,-500.0,0.00041233,7]
[422151329,1778623856000,-500.0,0.00041233,7]
[422151326,1778623856000,-500.0,0.00041233,7]
[422151335,1778623856000,-500.0,0.00041233,7]
[422151325,1778623856000,-500.0,0.00041233,7]
[422151316,1778623856000,-150.0,0.00041178,30]
[422151315,1778623856000,-810.29038564,0.00041178,30]
[422151321,1778623856000,-2803.44591517,0.000412,120]
[422151324,1778623856000,-500.0,0.00041233,7]
[422151408,1778623857000,-151.0,0.00041287,120]
[422151406,1778623857000,-151.0,0.00041287,120]
[422151405,1778623857000,-327.548371,0.00041287,120]
[422151397,1778623857000,-499.931776,0.00041287,120]
[422151403,1778623857000,-327.548371,0.00041287,120]
[422151401,1778623857000,-151.0,0.00041287,120]
[422151402,1778623857000,-327.548371,0.00041287,120]
[422151398,1778623857000,-499.931776,0.00041287,120]
[422151399,1778623857000,-499.931776,0.00041287,120]
[422151420,1778623857000,-226.128836,0.00041287,120]
[422151396,1778623857000,-151.0,0.00041287,30]
[422151400,1778623857000,-499.931776,0.00041287,120]
[422151419,1778623857000,-226.128836,0.00041287,120]
[422151413,1778623857000,-1000.0,0.00041287,120]
[422151407,1778623857000,-151.0,0.00041287,120]
[422151409,1778623857000,-151.0,0.00041287,120]
[422151411,1778623857000,-250.0,0.00041287,30]
[422151410,1778623857000,-1000.0,0.00041287,120]
[422151412,1778623857000,-200.0,0.00041287,7]
[422151414,1778623857000,-151.0,0.00041287,120]
[422151415,1778623857000,-151.0,0.00041287,120]
[422151417,1778623857000,-151.0,0.00041287,120]
[422151416,1778623857000,-151.0,0.00041287,120]
[422151422,1778623857000,-226.128836,0.00041287,120]
[422151421,1778623857000,-226.128836,0.00041287,120]
[422151423,1778623857000,-226.128836,0.00041287,120]
[422151393,1778623857000,-1105.864447,0.00041287,120]
[422151418,1778623857000,-226.128836,0.00041287,120]
[422151394,1778623857000,-1105.864447,0.00041287,120]
[422151372,1778623857000,-370.64235071,0.00041286,2]
[422151390,1778623857000,-1105.864447,0.00041287,120]
[422151432,1778623857000,-837.17522,0.00041287,120]
[422151366,1778623857000,-415.440891,0.00041286,2]
[422151365,1778623857000,-226.63121642,0.00041286,120]
[422151367,1778623857000,-303.39947232,0.00041286,2]
[422151364,1778623857000,-494.17,0.0004128,120]
[422151369,1778623857000,-397.99888766,0.00041286,2]
[422151370,1778623857000,-196.8900895,0.00041286,2]
[422151371,1778623857000,-305.38758663,0.00041286,2]
[422151368,1778623857000,-325.66653451,0.00041286,2]
[422151373,1778623857000,-350.45601896,0.00041286,2]
[422151375,1778623857000,-334.94327173,0.00041286,2]
[422151374,1778623857000,-478.45977876,0.00041286,2]
[422151380,1778623857000,-1557.527589,0.00041287,20]
[422151392,1778623857000,-1105.864447,0.00041287,120]
[422151377,1778623857000,-400.0,0.00041286,2]
[422151378,1778623857000,-181.0,0.00041287,120]
[422151379,1778623857000,-1557.527589,0.00041287,20]
[422151376,1778623857000,-304.1346495,0.00041286,2]
[422151382,1778623857000,-1557.527589,0.00041287,20]
[422151381,1778623857000,-1557.527589,0.00041287,20]
[422151385,1778623857000,-1557.527589,0.00041287,20]
[422151395,1778623857000,-151.0,0.00041287,30]
[422151384,1778623857000,-1557.527589,0.00041287,20]
[422151386,1778623857000,-1557.527589,0.00041287,20]
[422151389,1778623857000,-1105.864447,0.00041287,120]
[422151388,1778623857000,-1105.864447,0.00041287,120]
[422151391,1778623857000,-1105.864447,0.00041287,120]
[422151387,1778623857000,-1105.864447,0.00041287,120]
[422151383,1778623857000,-1557.527589,0.00041287,20]
[422151433,1778623857000,-837.17522,0.00041287,120]
[422151404,1778623857000,-327.548371,0.00041287,120]
[422151427,1778623857000,-837.17522,0.00041287,120]
[422151460,1778623857000,-448.648598,0.00041287,120]
[422151462,1778623857000,-151.0,0.00041287,120]
[422151472,1778623857000,-212.986392,0.00041287,120]
[422151473,1778623857000,-212.986392,0.00041287,120]
[422151461,1778623857000,-151.0,0.00041287,120]
[422151463,1778623857000,-448.648598,0.00041287,120]
[422151474,1778623857000,-212.986392,0.00041287,120]
[422151464,1778623857000,-246.240007,0.00041287,120]
[422151465,1778623857000,-151.0,0.00041287,120]
[422151470,1778623857000,-448.648598,0.00041287,120]
[422151468,1778623857000,-230.697101,0.00041287,120]
[422151471,1778623857000,-212.986392,0.00041287,120]
[422151466,1778623857000,-151.0,0.00041287,120]
[422151453,1778623857000,-448.648598,0.00041287,120]
[422151469,1778623857000,-448.648598,0.00041287,120]
[422151476,1778623857000,-212.986392,0.00041287,120]
[422151486,1778623857000,-1154.057842,0.00041287,28]
[422151475,1778623857000,-212.986392,0.00041287,120]
[422151477,1778623857000,-212.986392,0.00041287,120]
[422151479,1778623857000,-5000.0,0.00041287,120]
[422151478,1778623857000,-212.986392,0.00041287,120]
[422151485,1778623857000,-1154.057842,0.00041287,28]
[422151480,1778623857000,-1154.057842,0.00041287,28]
[422151483,1778623857000,-1154.057842,0.00041287,28]
[422151482,1778623857000,-1154.057842,0.00041287,28]
[422151484,1778623857000,-1154.057842,0.00041287,28]
[422151488,1778623857000,-151.0,0.00041287,120]
[422151434,1778623857000,-151.0,0.00041287,120]
[422151467,1778623857000,-299.632183,0.00041287,120]
[422151450,1778623857000,-151.0,0.00041287,120]
[422151481,1778623857000,-1154.057842,0.00041287,28]
[422151456,1778623857000,-151.0,0.00041287,120]
[422151458,1778623857000,-151.0,0.00041287,120]
[422151424,1778623857000,-226.128836,0.00041287,120]
[422151426,1778623857000,-837.17522,0.00041287,120]
[422151430,1778623857000,-837.17522,0.00041287,120]
[422151425,1778623857000,-226.128836,0.00041287,120]
[422151431,1778623857000,-837.17522,0.00041287,120]
[422151428,1778623857000,-837.17522,0.00041287,120]
[422151435,1778623857000,-151.0,0.00041287,120]
[422151445,1778623857000,-1036.23103,0.00041287,7]
[422151446,1778623857000,-1036.23103,0.00041287,7]
[422151447,1778623857000,-1036.23103,0.00041287,7]
[422151437,1778623857000,-151.0,0.00041287,120]
[422151436,1778623857000,-151.0,0.00041287,120]
[422151440,1778623857000,-1036.23103,0.00041287,7]
[422151429,1778623857000,-837.17522,0.00041287,120]
[422151443,1778623857000,-1036.23103,0.00041287,7]
[422151441,1778623857000,-905.98584531,0.00041287,30]
[422151457,1778623857000,-448.648598,0.00041287,120]
[422151459,1778623857000,-151.0,0.00041287,120]
[422151451,1778623857000,-268.267748,0.00041287,120]
[422151454,1778623857000,-151.0,0.00041287,120]
[422151448,1778623857000,-151.0,0.00041287,120]
[422151455,1778623857000,-448.648598,0.00041287,120]
[422151444,1778623857000,-1036.23103,0.00041287,7]
[422151442,1778623857000,-1036.23103,0.00041287,7]
[422151449,1778623857000,-151.0,0.00041287,120]
[422151439,1778623857000,-1036.23103,0.00041287,7]
[422151452,1778623857000,-448.648598,0.00041287,120]
[422151487,1778623857000,-1154.057842,0.00041287,28]
[422151438,1778623857000,-208.839071,0.00041287,120]
[422151525,1778623858000,-154.0,0.00041287,120]
[422151520,1778623858000,-174.0,0.00041287,120]
[422151516,1778623858000,-1000.0,0.00041287,120]
[422151519,1778623858000,-154.0,0.00041287,120]
[422151521,1778623858000,-510.0,0.00041287,120]
[422151524,1778623858000,-156.0,0.00041287,120]
[422151528,1778623858000,-4166.66,0.00041287,2]
[422151527,1778623858000,-157.71229644,0.00041287,2]
[422151530,1778623858000,-4166.66,0.00041287,2]
[422151526,1778623858000,-330.0,0.00041287,120]
[422151518,1778623858000,-178.0,0.00041287,120]
[422151517,1778623858000,-400.0,0.00041287,120]
[422151536,1778623858000,-4166.66,0.00041287,2]
[422151531,1778623858000,-4166.66,0.00041287,2]
[422151533,1778623858000,-4166.66,0.00041287,2]
[422151532,1778623858000,-4166.66,0.00041287,2]
[422151534,1778623858000,-4166.66,0.00041287,2]
[422151537,1778623858000,-4166.66,0.00041287,2]
[422151535,1778623858000,-4166.66,0.00041287,2]
[422151538,1778623858000,-4166.66,0.00041287,2]
[422151541,1778623858000,-4166.66,0.00041287,2]
[422151540,1778623858000,-4166.66,0.00041287,2]
[422151522,1778623858000,-151.10549082,0.00041287,14]
[422151539,1778623858000,-4166.66,0.00041287,2]
[422151529,1778623858000,-4166.66,0.00041287,2]
[422151512,1778623858000,-557.314988,0.00041287,120]
[422151497,1778623858000,-225.902096,0.00041287,120]
[422151515,1778623858000,-557.314988,0.00041287,120]
[422151543,1778623858000,-4166.66,0.00041287,2]
[422151490,1778623858000,-151.0,0.00041287,120]
[422151498,1778623858000,-225.902096,0.00041287,120]
[422151494,1778623858000,-151.0,0.00041287,7]
[422151491,1778623858000,-151.0,0.00041287,120]
[422151489,1778623858000,-151.0,0.00041287,120]
[422151500,1778623858000,-225.902096,0.00041287,120]
[422151499,1778623858000,-500.0,0.00041287,120]
[422151493,1778623858000,-151.0,0.00041287,7]
[422151492,1778623858000,-905.86,0.00041287,60]
[422151495,1778623858000,-151.0,0.00041287,7]
[422151496,1778623858000,-151.0,0.00041287,7]
[422151501,1778623858000,-225.902096,0.00041287,120]
[422151505,1778623858000,-225.902096,0.00041287,120]
[422151509,1778623858000,-557.314988,0.00041287,120]
[422151506,1778623858000,-1500.0,0.00041287,120]
[422151502,1778623858000,-225.902096,0.00041287,120]
[422151504,1778623858000,-225.902096,0.00041287,120]
[422151503,1778623858000,-225.902096,0.00041287,120]
[422151507,1778623858000,-200.0,0.00041287,7]
[422151508,1778623858000,-557.314988,0.00041287,120]
[422151511,1778623858000,-557.314988,0.00041287,120]
[422151510,1778623858000,-557.314988,0.00041287,120]
[422151513,1778623858000,-557.314988,0.00041287,120]
[422151523,1778623858000,-1251.0,0.00041287,120]
[422151514,1778623858000,-557.314988,0.00041287,120]
[422151544,1778623858000,-4166.66,0.00041287,2]
[422151551,1778623858000,-4166.8232964,0.00041287,2]
[422151542,1778623858000,-4166.66,0.00041287,2]
[422151574,1778623858000,-500.0,0.00041287,4]
[422151573,1778623858000,-500.0,0.00041287,4]
[422151577,1778623858000,-500.0,0.00041287,4]
[422151579,1778623858000,-500.0,0.00041287,4]
[422151581,1778623858000,-500.0,0.00041287,4]
[422151580,1778623858000,-500.0,0.00041287,4]
[422151588,1778623858000,-1210.0,0.00041287,2]
[422151578,1778623858000,-500.0,0.00041287,4]
[422151585,1778623858000,-401.16163483,0.00041287,2]
[422151583,1778623858000,-500.0,0.00041287,4]
[422151582,1778623858000,-500.0,0.00041287,4]
[422151584,1778623858000,-386.2182271,0.00041287,4]
[422151587,1778623858000,-49398.90478105,0.00041287,30]
[422151586,1778623858000,-4999.999999,0.00041287,32]
[422151590,1778623858000,-357.35465527,0.00041287,2]
[422151589,1778623858000,-721.2374457,0.00041287,2]
[422151591,1778623858000,-2875.5364797,0.00041287,2]
[422151592,1778623858000,-1045.08404322,0.00041287,20]
[422151593,1778623858000,-991.87749482,0.00041287,2]
[422151553,1778623858000,-216.6136058,0.00041287,30]
[422151599,1778623858000,-2521.86522709,0.00041287,2]
[422151598,1778623858000,-1527.35028496,0.00041287,2]
[422151597,1778623858000,-503.62094165,0.00041287,2]